Cogmind - Beta 9.3 @@@ ROGUE MODE // 2019.12.22 @ 23:28:27 // Winter2019/RPGLIKE Player: Hermelin Result: Destroyed by Y-45 Defender with Heavy Assault Rifle Performance ------------- Evolutions (2) 1000 Regions Visited (5) 1000 Robots Destroyed (27) 135 Value Destroyed (489) 489 Prototype IDs (24) 480 Alien Tech Used (0) 0 Bonus (300) 300 TOTAL SCORE: 3404 Bonus ------- Aligned with FarCom 300 Cogmind --------- Core Integrity 0/850 Matter 265/300 Energy 50/100 System Corruption 0% Temperature Cool (9) Movement Flying (34) Location -8/Materials Parts ------- > --- POWER (1) -------- (None) > --- PROPULSION (3) --- Flight Unit Flight Unit Cesium-ion Thruster > --- UTILITY (4) ------ Improved Signal Interpreter Improved Terrain Scanner Hacking Suite > --- WEAPON (2) ------- Flail Scythe > --- INVENTORY (3) ---- AWS/Gauss Improved Datajack Peak State ------------ > --- POWER ------------ (None) > --- PROPULSION ------- Flight Unit Flight Unit Cesium-ion Thruster > --- UTILITY ---------- Improved Sensor Array Improved Signal Interpreter Improved Terrain Scanner Hacking Suite > --- WEAPON ----------- Flail Scythe > --- INVENTORY -------- AWS/Gauss Improved Datajack [Rating: 20] Favorites ----------- Power Light Ion Engine Engine Light Ion Engine Propulsion Flight Unit Wheel Wheel Flight Unit Flight Unit Utility Improved Terrain Scanner Device Improved Terrain Scanner Processor Improved Signal Interpreter Hackware Hacking Suite Protection Hardened Medium Armor Plating Weapon Hammer Energy Gun EM Pulse Gun Impact Weapon Hammer Slashing Weapon Scythe Special Melee Weapon Improved Datajack Build | -11 -10 -10 -10 -9 -8 ------- Run | Scr Mat Min Exi Min Mat Slots Evolved 6 | 2 . 2 . 1 1 Power . | . . . . . . Propulsion 2 | 1 . 1 . . . Utility 3 | 1 . 1 . . 1 Weapon 1 | . . . . 1 . Parts Attached 27 | 6 10 1 . 1 9 Power 4 | 1 2 . . . 1 Engine 4 | 1 2 . . . 1 Core . | . . . . . . Reactor . | . . . . . . Propulsion 8 | 2 4 . . . 2 Treads . | . . . . . . Leg . | . . . . . . Wheel 2 | 2 . . . . . Hover . | . . . . . . Flight 6 | . 4 . . . 2 Utility 10 | 2 3 1 . 1 3 Device 5 | 1 1 1 . 1 1 Storage . | . . . . . . Processor 3 | 1 2 . . . . Hackware 1 | . . . . . 1 Protection 1 | . . . . . 1 Artifact . | . . . . . . Weapon 5 | 1 1 . . . 3 Energy Gun 1 | 1 . . . . . Energy Cannon . | . . . . . . Ballistic Gun . | . . . . . . Ballistic Cannon . | . . . . . . Launcher . | . . . . . . Special Weapon . | . . . . . . Impact Weapon 2 | . 1 . . . 1 Slashing Weapon 1 | . . . . . 1 Piercing Weapon . | . . . . . . Special Melee Weapon 1 | . . . . . 1 Unidentified Prototypes . | . . . . . . Parts Lost 3 | . . . . . 3 Power 1 | . . . . . 1 Propulsion 1 | . . . . . 1 Utility 1 | . . . . . 1 Weapon . | . . . . . . Highest Loss Streak 1 | . . . . . 1 Average Slot Usage (%) 89 | . 98 94 87 86 83 Engine 12 | . 16 13 12 11 7 Wheel 3 | . 14 . . . . Flight 22 | . 17 26 25 24 22 Device 21 | . 15 26 25 24 20 Processor 12 | . 16 13 12 11 10 Hackware 1 | . . . . . 9 Energy Gun 2 | . 12 . . . . Impact Weapon 9 | . 3 13 12 11 10 Naked Turns . | . . . . . . Heaviest Build 8 | 8 8 7 7 7 8 Greatest Support 26 | 26 26 8 8 8 14 Greatest Overweight (x) 1 | . 1 . . . . Average Overweight (x) . | . . . . . . Largest Inventory Capacity 3 | 2 2 2 2 2 3 Average Capacity 2 | 2 2 2 2 2 2 Most Carried 3 | 2 2 2 2 2 3 Average Carried 1 | 1 1 1 1 2 2 Final Capacity 3 | 2 2 2 2 2 3 Final Carried 3 | 2 2 1 2 2 3 Class Distribution -------------------- 67% | Scout 18% | Scavenger-Scout 13% | Mutant Dominant Class ---------------- Mutant | -10/Materials Scout | -10/Mines Scout | -10/Exiles Scout | -9/Mines Scavenger-Scout | -8/Materials Resources | -11 -10 -10 -10 -9 -8 ----------- Run | Scr Mat Min Exi Min Mat Matter Collected 425 | 260 92 . . 28 45 Remotely . | . . . . . . Salvage Created 889 | 46 596 . . 135 112 Parts 54 | 8 37 . . 2 7 Haulers Intercepted 1 | . 1 . . . . Recyclers Shooed 1 | . 1 . . . . Parts Field Recycled . | . . . . . . Retrieved Matter . | . . . . . . Parts Self-Destructed . | . . . . . . Prevented . | . . . . . . Kills | -11 -10 -10 -10 -9 -8 ------- Run | Scr Mat Min Exi Min Mat Combat Hostiles Destroyed 17 | . 10 . . 2 5 Melee 6 | . 2 . . 1 3 Guns 7 | . 7 . . . . AOE 1 | . 1 . . . . Classes Destroyed 10 | 1 7 . . . 2 Worker 2 | . 2 . . . . Builder 1 | . 1 . . . . Tunneler 2 | 2 . . . . . Hauler 1 | . 1 . . . . Recycler 1 | . 1 . . . . Operator 1 | . . . . . 1 Watcher 2 | . 2 . . . . Swarmer 9 | . 5 . . . 4 Grunt 7 | . 5 . . 2 . Sentry 1 | . . . . . 1 Best Kill Streak 7 | 2 7 . . 1 2 Combat Bots Only 5 | . 5 . . 1 2 Max Kills in Single Turn 2 | 1 2 . . 1 1 Gunslinging . | . . . . . . Exploded 1 | . 1 . . . . Melee 1 | . 1 . . 1 1 Uniques/NPCs Destroyed . | . . . . . . Combat | -11 -10 -10 -10 -9 -8 -------- Run | Scr Mat Min Exi Min Mat Damage Taken 1466 | . 420 . . 231 815 Core 1254 | . 354 . . 205 695 Absorbed by Shields . | . . . . . . Redirected to Core 714 | . 212 . . 86 416 Core Remaining (%) 72 | 100 . . . 45 . Volleys Fired 53 | 5 48 . . . . Largest 1 | 1 1 . . . . Hottest 40 | 40 40 . . . . Shots Fired 53 | 5 48 . . . . Gun 53 | 5 48 . . . . Cannon . | . . . . . . Launcher . | . . . . . . Special . | . . . . . . Kinetic . | . . . . . . Thermal . | . . . . . . Explosive . | . . . . . . Electromagnetic 53 | 5 48 . . . . Robot Hit Streak 8 | 3 8 . . . . Robot Miss Streak 3 | 2 3 . . . . Penetration Max . | . . . . . . Secondary Targets . | . . . . . . Shots Hit Robots 79 | 3 40 . . 17 19 Core Hits 30 | 2 21 . . 2 5 Critical Hits . | . . . . . . Critical Kills . | . . . . . . Critical Parts Destroyed . | . . . . . . Melee Attacks 77 | . 6 . . 37 34 Impact 69 | . 6 . . 37 26 Slashing 6 | . . . . . 6 Piercing . | . . . . . . Sneak Attacks . | . . . . . . Combat Hostiles . | . . . . . . Follow-up Attacks 1 | . . . . . 1 Damage Inflicted 1470 | 103 748 . . 311 308 Guns 575 | 51 524 . . . . Cannons . | . . . . . . Explosions 164 | 52 112 . . . . Melee 731 | . 112 . . 311 308 Ramming . | . . . . . . Kinetic . | . . . . . . Thermal 164 | 52 112 . . . . Explosive . | . . . . . . Electromagnetic 575 | 51 524 . . . . Impact 699 | . 112 . . 311 276 Slashing 32 | . . . . . 32 Piercing . | . . . . . . Highest Corruption 1 | . 1 1 1 1 . Average Corruption 1 | . 1 1 1 1 . Corruption Purged . | . . . . . . Effects 9 | . 4 1 3 1 . Message Errors 4 | . 1 1 1 1 . Energy Discharges 3 | . 1 . 2 . . Data Loss (minor) 1 | . 1 . . . . Targeting Errors 1 | . 1 . . . . Overload Shots . | . . . . . . Overflow Damage 37 | . 4 . . 18 15 Projectiles . | . . . . . . Explosions . | . . . . . . Melee 37 | . 4 . . 18 15 Knockbacks 1 | . 1 . . . . Impact 1 | . 1 . . . . Kinetic . | . . . . . . Secondary . | . . . . . . Self-Inflicted Damage . | . . . . . . Shots . | . . . . . . Rammed . | . . . . . . Targets Rammed . | . . . . . . Kicked . | . . . . . . Crushed . | . . . . . . Highest Temperature 241 | . 241 . . . . Average Temperature 87 | . 87 . . . . Received Heat Transfer 540 | . 183 . . 132 225 Siege Activations . | . . . . . . Robots Corrupted . | . . . . . . Combat Hostiles . | . . . . . . Parts Fried 10 | 1 8 . . . 1 Impact Corruptions 6 | . 2 . . 2 2 Robots Melted . | . . . . . . Combat Hostiles . | . . . . . . Parts Melted . | . . . . . . Heat Transferred 150 | 100 50 . . . . Parts Sabotaged . | . . . . . . Parts Stolen . | . . . . . . Parts Stripped . | . . . . . . Power Chain Reactions 2 | 1 1 . . . . Missiles Intercepted . | . . . . . . Alert | -11 -10 -10 -10 -9 -8 ------- Run | Scr Mat Min Exi Min Mat Peak Influence 319 | 10 319 . . 62 143 Average Influence 50 | 2 100 . . 8 37 Maximum Alert Level 1 | . 1 . . . . Low Security (%) 95 | 100 88 100 . 100 100 Level 1 4 | . 11 . . . . Level 2 . | . . . . . . Level 3 . | . . . . . . Level 4 . | . . . . . . Level 5 . | . . . . . . High Security . | . . . . . . Max Security . | . . . . . . Squads Dispatched 4 | . 3 . . . 1 Investigation 2 | . 2 . . . . Extermination . | . . . . . . Reinforcement 2 | . 1 . . . 1 Assault . | . . . . . . Garrison . | . . . . . . Intercept . | . . . . . . Construction Impeded . | . . . . . . Haulers Reinforced . | . . . . . . Stealth | -11 -10 -10 -10 -9 -8 --------- Run | Scr Mat Min Exi Min Mat Distress Signals 2 | . 1 . . . 1 Communications Jammed . | . . . . . . Distress Signals . | . . . . . . Times Spotted 56 | . 20 . . 2 34 Peak Tracking Total 15 | . 7 . . 2 15 Tactical Retreats 5 | . 1 . . . 4 Traps | -11 -10 -10 -10 -9 -8 ------- Run | Scr Mat Min Exi Min Mat Traps Triggered 1 | . 1 . . . . Indirectly . | . . . . . . Trap Hack Attempts . | . . . . . . Triggered . | . . . . . . Disarmed . | . . . . . . Reprogrammed . | . . . . . . Reused . | . . . . . . Traps Extracted . | . . . . . . Installed . | . . . . . . Triggered . | . . . . . . Machines | -11 -10 -10 -10 -9 -8 ---------- Run | Scr Mat Min Exi Min Mat Machines Disabled . | . . . . . . Max in Single Turn . | . . . . . . Machines Sabotaged . | . . . . . . Garrisons Compromised . | . . . . . . Overloaded Fab Kills . | . . . . . . Fab Network Shutdowns . | . . . . . . Hacking | -11 -10 -10 -10 -9 -8 --------- Run | Scr Mat Min Exi Min Mat Machines Accessed 16 | . 8 . 5 1 2 Terminals 10 | . 7 . . 1 2 Fabricators . | . . . . . . Repair Stations 1 | . 1 . . . . Recycling Units . | . . . . . . Scanalyzers . | . . . . . . Garrison Access . | . . . . . . Total Hacks 92 | . 30 . 49 4 9 Successful 71 | . 12 . 49 3 7 Failed 20 | . 17 . . 1 2 Catastrophic 1 | . . . . . 1 Database Lockouts 1 | . 1 . . . . Manual 32 | . 22 . 1 3 6 Terminals 40 | . 27 . . 4 9 Fabricators . | . . . . . . Repair Stations 3 | . 3 . . . . Recycling Units . | . . . . . . Scanalyzers . | . . . . . . Garrison Access . | . . . . . . Terminal Hacks 65 | . 8 . 49 3 5 Record 48 | . . . 48 . . Part Schematic 3 | . 1 . . 1 1 Robot Analysis 1 | . 1 . . . . Prototype ID Bank 1 | . 1 . . . . Branch Access Points 1 | . 1 . . . . Terminal Index 2 | . 1 . . . 1 Unreport Threat 5 | . 2 . . 1 2 Recall Reinforcements 2 | . 1 . . . 1 Zone Layout 1 | . . . . 1 . EX-Prototype ID Bank 1 | . . . 1 . . Fabricator Hacks . | . . . . . . Repair Station Hacks 2 | . 2 . . . . Scan Component 1 | . 1 . . . . Repair 1 | . 1 . . . . Recycling Unit Hacks . | . . . . . . Scanalyzer . | . . . . . . Garrison Access Hacks . | . . . . . . Unauthorized Hacks 15 | . 10 . . . 5 Terminals 4 | . 2 . . . 2 Botnet 4 | . 2 . . . 2 Fabricators . | . . . . . . Repair Stations . | . . . . . . Recycling Units . | . . . . . . Scanalyzers . | . . . . . . Garrison Access . | . . . . . . Data Cores Recovered . | . . . . . . Used . | . . . . . . Hacking Detections 10 | . 7 . . 1 2 Full Trace Events 3 | . 3 . . . . Feedback Events . | . . . . . . Feedback Blocked . | . . . . . . Robot Schematics Acquired . | . . . . . . Robots Built . | . . . . . . Matter . | . . . . . . Time . | . . . . . . Total Robot Build Rating . | . . . . . . Part Schematics Acquired 3 | . 1 . . 1 1 Parts Built . | . . . . . . Matter . | . . . . . . Time . | . . . . . . Total Part Build Rating . | . . . . . . Parts Repaired 1 | . 1 . . . . Time 32 | . 32 . . . . Parts Recycled . | . . . . . . Recycled Matter . | . . . . . . Retrieved Matter . | . . . . . . Retrieved Components . | . . . . . . Parts Scanalyzed . | . . . . . . Part Schematics Acquired . | . . . . . . Parts Damaged . | . . . . . . Bothacking | -11 -10 -10 -10 -9 -8 ------------ Run | Scr Mat Min Exi Min Mat Used RIF Installer . | . . . . . . Robots Hacked 1 | . . . . . 1 Non-combat . | . . . . . . Combat 1 | . . . . . 1 Robot Hacks Applied 1 | . . . . . 1 parse_system 1 | . . . . . 1 Relay Couplers Released . | . . . . . . Robots Rewired . | . . . . . . Allies Hacked . | . . . . . . Hacks Repelled . | . . . . . . Allies | -11 -10 -10 -10 -9 -8 -------- Run | Scr Mat Min Exi Min Mat Total Allies . | . . . . . . Largest Group . | . . . . . . Highest-Rated Group . | . . . . . . Highest-Rated Ally . | . . . . . . Total Orders . | . . . . . . Ally Attacks . | . . . . . . Total Damage . | . . . . . . Kills . | . . . . . . Allies Corrupted . | . . . . . . Allies Melted . | . . . . . . Intel | -11 -10 -10 -10 -9 -8 ------- Run | Scr Mat Min Exi Min Mat Robot Analysis Total 1 | . 1 . . . . Derelict Logs Recovered 3 | . . . . 3 . Drone Launches . | . . . . . . Drone Recoveries . | . . . . . . Exploration | -11 -10 -10 -10 -9 -8 ------------- Run | Scr Mat Min Exi Min Mat Turns Passed 2324 | 86 527 55 952 333 371 Spaces Moved 2560 | 71 629 120 833 538 369 Core 1 | 1 . . . . . Treads . | . . . . . . Legs . | . . . . . . Wheels 235 | 70 165 . . . . Hover . | . . . . . . Flight 2324 | . 464 120 833 538 369 Fastest Speed 34 | 50 37 37 37 37 34 Average Speed 41 | 89 51 37 37 37 36 Slowest Speed 120 | 90 120 37 37 37 37 Overloaded Moves . | . . . . . . Propulsion Burnouts . | . . . . . . Robots Hopped 2 | . . . . . 2 Cave-ins Triggered . | . . . . . . Exploration Rate (%) 56 | 4 88 17 94 97 38 Regions Visited 5 Branch Regions 3 Pre-discovered Areas 1 | . . . 1 . . Known Exits Taken 4 | . 1 1 1 1 . Unknown Exits Taken 1 | 1 . . . . . Scrap Searched 1 | . . . . 1 . Spaces Dug 8 | . . . . 4 4 Terrain Destroyed 24 | 7 9 . . 4 4 Melee 8 | . . . . 4 4 Projectile . | . . . . . . AOE 16 | 7 9 . . . . Actions | -11 -10 -10 -10 -9 -8 --------- Run | Scr Mat Min Exi Min Mat Total 3641 | 85 777 129 1476 616 558 Wait 887 | 2 58 9 642 40 136 Move 2551 | 70 628 119 832 537 365 Hop 2 | . . . . . 2 Pick Up 7 | 2 3 . 1 . 1 Fast Attach 19 | 6 7 . . . 6 Attach 2 | . . 1 . . 1 Detach 1 | . . . . . 1 Swap 6 | . 3 . . 1 2 Drop 18 | . 12 . 1 1 4 Fire 53 | 5 48 . . . . Melee 75 | . 6 . . 37 32 Ram . | . . . . . . Kick . | . . . . . . Crush . | . . . . . . Escape Stasis . | . . . . . . Rewire . | . . . . . . Trap . | . . . . . . Miscellaneous 20 | . 12 . . . 8 Route ------- -11/Scrapyard -10/Materials (discovered 4 exits: *Mat x3 / *Min) -10/Mines (discovered 3 exits: *Mat x2 / *Exi) -10/Exiles (discovered 2 exits: *Min x2) -9/Mines (discovered 2 exits: *Mat x2) -8/Materials (discovered 2 exits: Fac x2) History --------- Turn | Location | Event 1 | -11/Scrapyard | Upgraded with Propulsion slot (x1) 1 | -11/Scrapyard | Upgraded with Utility slot (x1) 5 | -11/Scrapyard | Discovered new exit (range 15) 87 | -11/Scrapyard | Entered Materials 197 | -10/Materials | Repaired Imp. Terrain Scanner 302 | -10/Materials | Build established: Mutant 328 | -10/Materials | Discovered new exit (range 16) 354 | -10/Materials | Discovered new exit (range 18) 431 | -10/Materials | Identified exit to Materials 517 | -10/Materials | Discovered exit to Materials (range 15) 557 | -10/Materials | Discovered exit to Materials (range 15) 578 | -10/Materials | Identified exit to Mines 578 | -10/Materials | Reached level 2 604 | -10/Materials | Central database locked down 614 | -10/Materials | Entered Mines 615 | -10/Mines | Assembled infested the area 615 | -10/Mines | Upgraded with Utility slot (x1) 620 | -10/Mines | Discovered exit to Materials (range 9) 633 | -10/Mines | Discovered new exit (range 6) 633 | -10/Mines | Deemed a non-threat by the Exiles lab entrance 634 | -10/Mines | Identified exit to Exiles 643 | -10/Mines | Upgraded with Propulsion slot (x1) 665 | -10/Mines | Discovered exit to Materials (range 14) 669 | -10/Mines | Entered Exiles 677 | -10/Exiles | Discovered new exit (range 15) 682 | -10/Exiles | Identified exit to Mines 690 | -10/Exiles | Met 8R-AWN 698 | -10/Exiles | Met EX-HEX 712 | -10/Exiles | Build established: Scout 712 | -10/Exiles | Met EX-DEC 723 | -10/Exiles | Visited The Gauntlet 1227 | -10/Exiles | Learned location of Zion (-7) 1309 | -10/Exiles | Discovered exit to Mines (range 15) 1379 | -10/Exiles | Met EX-BIN 1471 | -10/Exiles | Aligned with FarCom system 1472 | -10/Exiles | Given EX-Vault access code 1480 | -10/Exiles | Opened EX-Vault 1494 | -10/Exiles | Warned to stay clear of 0b10 Research branches 1510 | -10/Exiles | Found AWS/Gauss 1621 | -10/Exiles | Left Exiles lab with AWS/Gauss 1621 | -10/Exiles | Entered Mines 1629 | -9/Mines | Learned Materials trap positions 1630 | -9/Mines | Learned location of 1 exit from Materials 1645 | -9/Mines | Received a Rocket Launcher from a helpful Derelict 1676 | -9/Mines | Learned location of 1 exit from Materials 1677 | -9/Mines | Discovered new exit (range 3) 1678 | -9/Mines | Identified exit to Materials 1795 | -9/Mines | Discovered exit to Materials (range 14) 1909 | -9/Mines | Reached level 3 1928 | -9/Mines | Core integrity fell below 50% 1944 | -9/Mines | Upgraded with Weapon slot (x1) 1954 | -9/Mines | Entered Materials 1955 | -8/Materials | Identified exit to Factory 1955 | -8/Materials | Core integrity fell below 50% 1956 | -8/Materials | Loaded intel: 21 trap records 1956 | -8/Materials | Reached level 4 1977 | -8/Materials | Upgraded with Utility slot (x1) 2267 | -8/Materials | Core integrity fell below 20% 2302 | -8/Materials | Build established: Scavenger-Scout 2325 | -8/Materials | Destroyed by Y-45 Defender with Heavy Assault Rifle Last Messages --------------- 02211_ Upgraded: Inventory Capacity (+1) 02212_ Acquired Unknown Protection. 02220_ Lgt. Ion Engine destroyed. 02267_ S-10 Pest destroyed. 02269_ Acquired 5 matter. 02270_ Flight Unit destroyed. 02272_ U-05 Engineer destroyed. 02276_ Dropped Imp. Sensor Array. 02276_ Identified Hrd. Medium Armor Plating. 02277_ Dropped Hrd. Medium Armor Plating. 02278_ Acquired Imp. Sensor Array. 02281_ Acquired Scythe. 02285_ Flail follow-up attack on S-10 Pest. 02285_ Destroyed Flight Unit. 02285_ S-10 Pest system corrupted by crushing effect. 02286_ S-10 Pest system terminally corrupted. 02291_ S-10 Pest destroyed. 02297_ Upgraded: Core Integrity (+100) 02316_ Acquired Cesium-ion Thruster. 02325_ Imp. Sensor Array destroyed. Map ----- +----------------------------------------------------+ | ## """ = #???######?? ! "??????????????????????? | | # ##?##?##??#? ?"????????????????????? | | #####+###########?????? ? ???#??#???????????? | | ### #????###########+###?#?#?????? ?????????? | | ###### ## #?#???????#????????????? | | + """ ## ############ ????????? | | %| ###### ! """ # ????????? | | #### ###### """ + ????????? | | ?## ####??# ! # C ????????? | | ??## ##??#?# """ # #####/####????????????? | | ### ##?#### """ # ## ?? ?? ?????????????? | | ### ###?#?#Y ! """ # g #?????????????????????? | | ###?# #?#?### # #? ????? "?"??????????? | | # ?##??#g######## ##? ???#?"????????????? | | T # ##?###g######## +?? ??????"??????????? | | ???+ Y g g ##???????? ???????????? | | # ###??#+#########/#######?# ?????????????? | | ??# ###? ? #??# gg ###? ????????????? | | ?### ####?# ?? ? ?### ]/ ##?##???????????? | | ###### ##???#???"?g??## ]/ Y####?????????????? | | ##???? ??"??g ?+ ]/ #???###?#????????? | | ######+#####? ??S? ?###g #???##?#?????????? | | #?## #?#?? ? #?## #?#??##??##??????? | | ?#?# #??????#??#?# ###??##????#?????? | | ##?# #???#???#??## ##?#?##?#????????? | | #### #?????#???#?###@########?#?? ?? ???????? | | #?## ##?#?###??#?#### ###????##?? ? ?#?????? | | ???#[ ###?#####??##?#?##??#??#?? ????????????? | | ####"######??##??###??###########?##????"????????? | | # #?#??#?######### ##??#?"""?????????? | | # """ #####?#####?#?## """" #??##??????#??????? | | # """ #######?#?##?### """" ##??#??#+#????????? | | + """ #?#?############ """" ## ?? ?? ?????????? | | # #####?#####?##?# + w ? ? ? ??????? | | #[ ! ##?####?######## ! """" ##??? ?? ? ?? ???? | | ####################### """" ## #?#??#???????? | | ?####?################# """" #? #?####???????? | | ##?#### = ####### #? ##???##?#????? | | ####?##"" """ # ! #####+##### #######??????? | | #"T """ # #?????? | | #"" " + T ?????? | | """ # # #?????? | | """ # # ##### ##### #?????? | | "?" # ! ## ###### ##?## ??????? | | ? # *= ## ###### ##### ??????? | | ############ ##### ###### ##### ???????? | | ####?############# ###### ##?## ???????? | | ########?###?##### ######+##### ? #?#????????? | | #####?############ ## # ?#?????????? | | ################## ## # ? ##?#+??????? | +----------------------------------------------------+ Best States ------------- Heat Dissipation 31 Energy Generation 15 Energy Capacity 250 Matter Stores 300 Matter Capacity 300 Sight Range 18 Robot Scan Range 27 Terrain Scan Range 16 Terrain Scan Density 260 Evasion (%) 63 Offensive Hacking 10 Item Schematics ----------------- Flight Unit | -10/Materials | Hacked Imp. Sensor Array | -9/Mines | Hacked Hacking Suite | -8/Materials | Hacked Robot Schematics ------------------ None Fabricated ------------ Nothing Alien Tech Used ----------------- None Achievements -------------- None Challenges ------------ None RPGLIKE | -11 -10 -10 -10 -9 -8 --------- Run | Scr Mat Min Exi Min Mat Levels Raised 3 | . 1 . . 1 1 XP Earned 8370 | 3000 1550 500 350 785 2185 XP Spent 7370 | 2250 120 2125 . 800 2075 Upgrades 26 | 9 2 6 . 2 7 Propulsion Slot 2 | 1 . 1 . . . Utility Slot 3 | 1 . 1 . . 1 Weapon Slot 1 | . . . . 1 . Core Integrity 5 | . . . . . 5 Heat Dissipation 1 | . . 1 . . . Energy Generation 1 | . . . . 1 . Inventory Capacity 3 | 2 . . . . 1 Sight Range 1 | . . 1 . . . Sensor Range 7 | 5 . 2 . . . Terrain Scan Density 2 | . 2 . . . . Protomatter Created 140 | . 83 . . . 57 Integrity Restored 402 | . 231 . . . 171 Core 402 | . 231 . . . 171 Protomatter Decayed 27 | . 20 7 . . . Game ------ Seed HeartPotentialLauncher Manual? 0 Play Time 00:47:31 Cumulative 10.7 hours Start 2019.12.22 @ 22:29:37 End 2019.12.22 @ 23:28:27 Sessions 1 Manual Loads 0 Difficulty Rogue Special Mode Winter2019/RPGLIKE Game No. 6 Rogue 6 Adventurer 0 Explorer 0 Win Type - Total 0 Types 0/0/0/0/0/0/0 Lore% 28 Gallery% 14 Achievement% 22 Wizard Run 0 Options --------- ASCII 0 Keyboard 0 Movement Numpad Keybinds 0 Fullscreen 1 Font 14/SmallcapsGlow Map View 84x54 Tactical HUD 1 Map Filters NONE Filters NONE Steam 1 RUN: 741a7fbe-8769-4c50-bef7-6462eb85892c